[Event "Live Chess"]
[Site "Chess.com"]
[Date "2024.06.02"]
[Round "-"]
[White "imchessive"]
[Black "Queensandpawns"]
[Result "0-1"]
[WhiteElo "1589"]
[BlackElo "2282"]
[TimeControl "300"]
[EndTime "6:19:48 PDT"]
[Termination "Queensandpawns won by checkmate"]

1. d4 {[%clk 0:04:58.4]} 1... e5 {[%clk 0:04:58.3]} 2. dxe5 {[%clk 0:04:56.8]}
2... Nc6 {[%clk 0:04:55]} 3. Nf3 {[%clk 0:04:56.7]} 3... Qe7 {[%clk 0:04:54.4]}
4. g3 {[%clk 0:04:55.6]} 4... Nxe5 {[%clk 0:04:52.3]} 5. Bg2 {[%clk 0:04:54]}
5... Nxf3+ {[%clk 0:04:51.6]} 6. Bxf3 {[%clk 0:04:53.9]} 6... c6 {[%clk
0:04:51.3]} 7. O-O {[%clk 0:04:52.3]} 7... d5 {[%clk 0:04:50.7]} 8. Nc3 {[%clk
0:04:48]} 8... Nf6 {[%clk 0:04:48.5]} 9. Bg5 {[%clk 0:04:46.6]} 9... Bh3 {[%clk
0:04:47.6]} 10. Bg2 {[%clk 0:04:41.8]} 10... Bxg2 {[%clk 0:04:46.7]} 11. Kxg2
{[%clk 0:04:41.7]} 11... O-O-O {[%clk 0:04:46.3]} 12. a4 {[%clk 0:04:36]} 12...
h6 {[%clk 0:04:45.1]} 13. Bxf6 {[%clk 0:04:30.8]} 13... Qxf6 {[%clk 0:04:45]}
14. e3 {[%clk 0:04:19.4]} 14... h5 {[%clk 0:04:42]} 15. a5 {[%clk 0:04:15.1]}
15... h4 {[%clk 0:04:40.4]} 16. a6 {[%clk 0:04:11.6]} 16... b6 {[%clk
0:04:39.4]} 17. Qg4+ {[%clk 0:04:02.4]} 17... Kb8 {[%clk 0:04:37.4]} 18. Ne2
{[%clk 0:03:32.6]} 18... hxg3 {[%clk 0:04:33.2]} 19. fxg3 {[%clk 0:03:28.1]}
19... Qe5 {[%clk 0:04:31.6]} 20. Nd4 {[%clk 0:03:12.2]} 20... Qc7 {[%clk
0:04:16.7]} 21. Rxf7 {[%clk 0:02:50.5]} 21... Qxf7 {[%clk 0:04:09.5]} 22. Nxc6+
{[%clk 0:02:49.4]} 22... Kc7 {[%clk 0:04:08.7]} 23. Nxd8 {[%clk 0:02:28.1]}
23... Kxd8 {[%clk 0:04:08.6]} 24. Rf1 {[%clk 0:02:14.2]} 24... Qd7 {[%clk
0:04:06.3]} 25. Qg5+ {[%clk 0:01:36]} 25... Be7 {[%clk 0:04:04.2]} 26. Qxg7
{[%clk 0:01:33.5]} 26... Qh3+ {[%clk 0:04:02.7]} 27. Kf2 {[%clk 0:01:24.2]}
27... Rf8+ {[%clk 0:04:01.4]} 28. Ke2 {[%clk 0:01:18]} 28... Qxf1+ {[%clk
0:03:55.9]} 29. Kd2 {[%clk 0:01:16.8]} 29... Bb4+ {[%clk 0:03:51.6]} 30. c3
{[%clk 0:01:15.6]} 30... Rf2# {[%clk 0:03:51]} 0-1

[Event "Live Chess"]
[Site "Chess.com"]
[Date "2024.06.02"]
[Round "-"]
[White "r0ad_t0-gm"]
[Black "matt1979"]
[Result "1-0"]
[WhiteElo "2305"]
[BlackElo "1405"]
[TimeControl "300"]
[EndTime "6:20:39 PDT"]
[Termination "r0ad_t0-gm won by resignation"]

1. Nf3 {[%clk 0:04:59.2]} 1... f5 {[%clk 0:04:57.6]} 2. d3 {[%clk 0:04:57.7]}
2... e6 {[%clk 0:04:54.1]} 3. e4 {[%clk 0:04:53.4]} 3... fxe4 {[%clk 0:04:48.7]}
4. dxe4 {[%clk 0:04:53.3]} 4... Nf6 {[%clk 0:04:46.7]} 5. Nc3 {[%clk 0:04:35.7]}
5... Bb4 {[%clk 0:04:33.4]} 6. Bg5 {[%clk 0:04:28.6]} 6... O-O {[%clk
0:04:25.9]} 7. e5 {[%clk 0:04:17.6]} 7... h6 {[%clk 0:04:24.6]} 8. Bh4 {[%clk
0:04:13.3]} 8... g5 {[%clk 0:04:18.3]} 9. Nxg5 {[%clk 0:04:11.6]} 9... hxg5
{[%clk 0:04:11.8]} 10. Bxg5 {[%clk 0:04:11.5]} 10... Qe8 {[%clk 0:04:04.4]} 11.
Bxf6 {[%clk 0:04:09.6]} 1-0

[Event "Live Chess"]
[Site "Chess.com"]
[Date "2024.06.02"]
[Round "-"]
[White "gobbles19"]
[Black "Dashman93"]
[Result "0-1"]
[WhiteElo "2224"]
[BlackElo "2131"]
[TimeControl "300"]
[EndTime "6:20:52 PDT"]
[Termination "Dashman93 won by resignation"]

1. e4 {[%clk 0:04:57.2]} 1... e5 {[%clk 0:04:59.2]} 2. d4 {[%clk 0:04:55.6]}
2... Nc6 {[%clk 0:04:58.2]} 3. c3 {[%clk 0:04:47.3]} 3... Nf6 {[%clk 0:04:56.5]}
4. Bg5 {[%clk 0:04:42.6]} 4... Be7 {[%clk 0:04:53.6]} 5. d5 {[%clk 0:04:38.1]}
5... Nb8 {[%clk 0:04:51.8]} 6. Nd2 {[%clk 0:04:35.6]} 6... Nxd5 {[%clk
0:04:48.2]} 7. Bxe7 {[%clk 0:04:30]} 7... Nxe7 {[%clk 0:04:47]} 8. Ngf3 {[%clk
0:04:27.8]} 8... Nbc6 {[%clk 0:04:46.1]} 9. Bc4 {[%clk 0:04:24.7]} 9... O-O
{[%clk 0:04:45.7]} 10. O-O {[%clk 0:04:23]} 10... d6 {[%clk 0:04:45]} 11. h3
{[%clk 0:04:21.7]} 11... Ng6 {[%clk 0:04:44.1]} 12. b4 {[%clk 0:04:16.9]} 12...
Be6 {[%clk 0:04:43.3]} 13. Bxe6 {[%clk 0:04:14.1]} 13... fxe6 {[%clk 0:04:43.2]}
14. Qb3 {[%clk 0:04:11.4]} 14... Qe7 {[%clk 0:04:40.8]} 15. a4 {[%clk
0:04:07.9]} 15... Nf4 {[%clk 0:04:40.1]} 16. b5 {[%clk 0:04:04.2]} 16... Nd8
{[%clk 0:04:38.9]} 17. Nc4 {[%clk 0:03:59.1]} 17... Nxh3+ {[%clk 0:04:36]} 18.
gxh3 {[%clk 0:03:55.4]} 18... Rxf3 {[%clk 0:04:34.8]} 19. Kg2 {[%clk 0:03:50.8]}
19... Rf6 {[%clk 0:04:26]} 20. Ne3 {[%clk 0:03:49.1]} 20... Rg6+ {[%clk
0:04:24.4]} 21. Kh2 {[%clk 0:03:48.1]} 21... Qh4 {[%clk 0:04:23.4]} 22. Ng2
{[%clk 0:03:35.8]} 22... Qxe4 {[%clk 0:04:21.7]} 0-1

[Event "Live Chess"]
[Site "Chess.com"]
[Date "2024.06.02"]
[Round "-"]
[White "slava_ukr"]
[Black "bobby_jamesFischer86"]
[Result "1-0"]
[WhiteElo "2335"]
[BlackElo "1649"]
[TimeControl "300"]
[EndTime "6:20:53 PDT"]
[Termination "slava_ukr won by resignation"]

1. e4 {[%clk 0:04:55.2]} 1... c5 {[%clk 0:04:57.6]} 2. d4 {[%clk 0:04:54.3]}
2... cxd4 {[%clk 0:04:56.1]} 3. c3 {[%clk 0:04:53.8]} 3... dxc3 {[%clk
0:04:53.7]} 4. Nxc3 {[%clk 0:04:53.2]} 4... d6 {[%clk 0:04:53.3]} 5. Bc4 {[%clk
0:04:52.5]} 5... e6 {[%clk 0:04:52.7]} 6. Nf3 {[%clk 0:04:51.2]} 6... Nf6 {[%clk
0:04:50]} 7. O-O {[%clk 0:04:50.3]} 7... Be7 {[%clk 0:04:48.7]} 8. Qe2 {[%clk
0:04:49.5]} 8... Bd7 {[%clk 0:04:47.9]} 9. Rd1 {[%clk 0:04:48.6]} 9... a6 {[%clk
0:04:46.6]} 10. Bf4 {[%clk 0:04:47.4]} 10... Qc7 {[%clk 0:04:43.9]} 11. Rac1
{[%clk 0:04:45]} 11... Nc6 {[%clk 0:04:41.8]} 12. Bb3 {[%clk 0:04:44.1]} 12...
Rc8 {[%clk 0:04:39.2]} 13. Nd5 {[%clk 0:04:43]} 13... Qb8 {[%clk 0:04:34.2]} 14.
Nxe7 {[%clk 0:04:41.6]} 14... Nxe7 {[%clk 0:04:30.8]} 15. Bxd6 {[%clk
0:04:35.3]} 15... Qa8 {[%clk 0:04:29.4]} 16. Ne5 {[%clk 0:04:02.4]} 16... Nc6
{[%clk 0:04:06.2]} 17. Nc4 {[%clk 0:03:17.1]} 17... b5 {[%clk 0:03:48.3]} 18.
Nb6 {[%clk 0:03:15.9]} 18... Qb7 {[%clk 0:03:46.5]} 19. Nxc8 {[%clk 0:03:14.9]}
19... Qxc8 {[%clk 0:03:45.3]} 1-0

[Event "Live Chess"]
[Site "Chess.com"]
[Date "2024.06.02"]
[Round "-"]
[White "vincents82"]
[Black "MagnersCarlsberg2870"]
[Result "1-0"]
[WhiteElo "1999"]
[BlackElo "1736"]
[TimeControl "300"]
[EndTime "6:20:56 PDT"]
[Termination "vincents82 won by resignation"]

1. e4 {[%clk 0:04:55.1]} 1... e5 {[%clk 0:04:57.9]} 2. Nf3 {[%clk 0:04:49.8]}
2... d6 {[%clk 0:04:56.8]} 3. d4 {[%clk 0:04:45.9]} 3... Nd7 {[%clk 0:04:54]} 4.
Nc3 {[%clk 0:04:44.8]} 4... Ngf6 {[%clk 0:04:48.3]} 5. Be3 {[%clk 0:04:42.6]}
5... h6 {[%clk 0:04:46.9]} 6. Be2 {[%clk 0:04:41.7]} 6... c6 {[%clk 0:04:46]} 7.
h3 {[%clk 0:04:40.8]} 7... Qc7 {[%clk 0:04:44.3]} 8. Qd2 {[%clk 0:04:40.1]} 8...
a5 {[%clk 0:04:42.6]} 9. dxe5 {[%clk 0:04:35.4]} 9... dxe5 {[%clk 0:04:41.4]}
10. a4 {[%clk 0:04:34.5]} 10... Be7 {[%clk 0:04:40.1]} 11. O-O {[%clk
0:04:33.2]} 11... g6 {[%clk 0:04:39.2]} 12. Rad1 {[%clk 0:04:30.9]} 12... g5
{[%clk 0:04:37.5]} 13. Nh2 {[%clk 0:04:29]} 13... Nf8 {[%clk 0:04:35.5]} 14. Ng4
{[%clk 0:04:26.7]} 14... Ng6 {[%clk 0:04:30.7]} 15. Nxf6+ {[%clk 0:04:19.2]}
15... Bxf6 {[%clk 0:04:29.3]} 16. Bg4 {[%clk 0:04:17.6]} 16... Bxg4 {[%clk
0:04:20]} 17. hxg4 {[%clk 0:04:16.6]} 17... Be7 {[%clk 0:04:17.6]} 18. Qe2
{[%clk 0:04:11.1]} 18... Nf4 {[%clk 0:04:15.8]} 19. Bxf4 {[%clk 0:04:09.9]}
19... gxf4 {[%clk 0:04:12.7]} 20. Qf3 {[%clk 0:03:58.5]} 20... Qb6 {[%clk
0:03:47]} 21. b3 {[%clk 0:03:43.7]} 21... Bb4 {[%clk 0:03:42.1]} 22. Nb1 {[%clk
0:03:42.6]} 22... Be7 {[%clk 0:03:25.4]} 23. Nd2 {[%clk 0:03:41.2]} 23... O-O-O
{[%clk 0:03:21.2]} 24. Nc4 {[%clk 0:03:39]} 24... Qc7 {[%clk 0:03:17.7]} 25. Qc3
{[%clk 0:03:37.6]} 25... Bf6 {[%clk 0:03:08.9]} 26. Qxa5 {[%clk 0:03:35.7]}
26... Qxa5 {[%clk 0:02:59.5]} 27. Nxa5 {[%clk 0:03:34.4]} 27... h5 {[%clk
0:02:58]} 28. g3 {[%clk 0:03:22.3]} 28... hxg4 {[%clk 0:02:55.4]} 29. gxf4
{[%clk 0:03:19.6]} 29... Rdg8 {[%clk 0:02:51.9]} 30. Kg2 {[%clk 0:03:16.5]}
30... exf4 {[%clk 0:02:49.9]} 31. Nc4 {[%clk 0:03:08]} 31... Rh3 {[%clk
0:02:42.9]} 32. Rh1 {[%clk 0:03:03.1]} 32... f3+ {[%clk 0:02:40.9]} 33. Kg1
{[%clk 0:03:02.4]} 33... Rgh8 {[%clk 0:02:30.1]} 34. Rxh3 {[%clk 0:03:00.4]}
34... Rxh3 {[%clk 0:02:28.7]} 35. Ne3 {[%clk 0:02:54.3]} 35... g3 {[%clk
0:02:21.3]} 36. fxg3 {[%clk 0:02:53.5]} 36... Rxg3+ {[%clk 0:02:20.2]} 37. Kf2
{[%clk 0:02:52.8]} 37... Bh4 {[%clk 0:02:18.7]} 38. Nf5 {[%clk 0:02:50.2]} 38...
Rg2+ {[%clk 0:02:13.1]} 39. Kxf3 {[%clk 0:02:45.3]} 39... Rf2+ {[%clk
0:02:05.5]} 40. Ke3 {[%clk 0:02:43]} 40... Rh2 {[%clk 0:01:58.3]} 41. Nd6+
{[%clk 0:02:27]} 41... Kc7 {[%clk 0:01:54.9]} 42. Nxf7 {[%clk 0:02:25.3]} 42...
Rxc2 {[%clk 0:01:52.5]} 43. Rd3 {[%clk 0:02:24.3]} 43... Bf2+ {[%clk 0:01:47.6]}
44. Kf3 {[%clk 0:02:21.6]} 44... Bc5 {[%clk 0:01:43.7]} 45. Nh6 {[%clk
0:02:15.7]} 45... Rf2+ {[%clk 0:01:40.5]} 46. Kg4 {[%clk 0:02:14.1]} 46... Bd6
{[%clk 0:01:36.2]} 47. Nf5 {[%clk 0:02:10.9]} 47... Be5 {[%clk 0:01:25.3]} 48.
Rf3 {[%clk 0:02:08.5]} 48... Rxf3 {[%clk 0:01:21.4]} 49. Kxf3 {[%clk 0:02:07.6]}
49... Kb6 {[%clk 0:01:20]} 50. Ne3 {[%clk 0:02:06.7]} 50... Ka5 {[%clk
0:01:17.7]} 51. Nc4+ {[%clk 0:02:05.4]} 1-0

[Event "Live Chess"]
[Site "Chess.com"]
[Date "2024.06.02"]
[Round "-"]
[White "mrsmarple1968"]
[Black "upoe610"]
[Result "0-1"]
[WhiteElo "1734"]
[BlackElo "2143"]
[TimeControl "300"]
[EndTime "6:20:57 PDT"]
[Termination "upoe610 won on time"]

1. e4 {[%clk 0:04:52.3]} 1... e5 {[%clk 0:04:50.5]} 2. Bc4 {[%clk 0:04:49.1]}
2... Nf6 {[%clk 0:04:49.3]} 3. d3 {[%clk 0:04:46.6]} 3... Nc6 {[%clk 0:04:48.1]}
4. Nf3 {[%clk 0:04:44.4]} 4... Bc5 {[%clk 0:04:45.5]} 5. O-O {[%clk 0:04:42]}
5... h6 {[%clk 0:04:43.1]} 6. Re1 {[%clk 0:04:40.4]} 6... Ng4 {[%clk 0:04:39.7]}
7. Re2 {[%clk 0:04:38.5]} 7... a6 {[%clk 0:04:38.1]} 8. c3 {[%clk 0:04:36.6]}
8... d6 {[%clk 0:04:36.5]} 9. Bb3 {[%clk 0:04:28.4]} 9... O-O {[%clk 0:04:34.1]}
10. h3 {[%clk 0:04:23.8]} 10... Nf6 {[%clk 0:04:31.5]} 11. Nbd2 {[%clk
0:04:16.9]} 11... Be6 {[%clk 0:04:29.1]} 12. Bc2 {[%clk 0:04:13.4]} 12... Nh5
{[%clk 0:04:11.3]} 13. Nf1 {[%clk 0:04:03.7]} 13... Qf6 {[%clk 0:04:09.4]} 14.
Be3 {[%clk 0:03:34.1]} 14... Bxh3 {[%clk 0:03:57.5]} 15. Bxc5 {[%clk 0:03:19.8]}
15... Bxg2 {[%clk 0:03:54.3]} 16. Re3 {[%clk 0:03:12]} 16... Nf4 {[%clk
0:03:47.9]} 17. Ba3 {[%clk 0:02:53.6]} 17... Qg6 {[%clk 0:03:46.4]} 18. Ng3
{[%clk 0:02:45.1]} 18... Qg4 {[%clk 0:03:36]} 19. Nh2 {[%clk 0:01:46.5]} 19...
Qh3 {[%clk 0:03:30.2]} 20. Qg4 {[%clk 0:01:37.7]} 20... h5 {[%clk 0:03:21.1]}
21. Qxh3 {[%clk 0:01:35.7]} 21... Bxh3 {[%clk 0:03:21]} 22. Nf3 {[%clk
0:01:22.3]} 22... Bg4 {[%clk 0:03:15.9]} 23. Rae1 {[%clk 0:01:13.1]} 23... f6
{[%clk 0:03:08.3]} 24. Ne2 {[%clk 0:01:08.8]} 24... g5 {[%clk 0:02:59.2]} 25. b3
{[%clk 0:00:57.8]} 25... Ne7 {[%clk 0:02:48.6]} 26. Bb2 {[%clk 0:00:52.9]} 26...
Neg6 {[%clk 0:02:45.5]} 27. d4 {[%clk 0:00:46.3]} 27... h4 {[%clk 0:02:35.8]}
28. dxe5 {[%clk 0:00:42.9]} 28... dxe5 {[%clk 0:02:35.7]} 29. b4 {[%clk
0:00:35.8]} 29... h3 {[%clk 0:02:33]} 30. Kh2 {[%clk 0:00:33.4]} 30... Kg7
{[%clk 0:02:22.1]} 31. Bb3 {[%clk 0:00:30.2]} 31... Ng2 {[%clk 0:02:09.7]} 32.
Bc4 {[%clk 0:00:04.7]} 32... Nxe3 {[%clk 0:02:05.7]} 33. fxe3 {[%clk 0:00:04.6]}
33... Bxf3 {[%clk 0:02:04.6]} 34. Ng3 {[%clk 0:00:01]} 34... g4 {[%clk
0:02:01.9]} 0-1

[Event "Live Chess"]
[Site "Chess.com"]
[Date "2024.06.02"]
[Round "-"]
[White "jimwad"]
[Black "booktrunk"]
[Result "0-1"]
[WhiteElo "1301"]
[BlackElo "1500"]
[TimeControl "300"]
[EndTime "6:21:06 PDT"]
[Termination "booktrunk won by resignation"]

1. c4 {[%clk 0:04:57.6]} 1... e6 {[%clk 0:04:58.2]} 2. g3 {[%clk 0:04:56.2]}
2... h6 {[%clk 0:04:54]} 3. Bg2 {[%clk 0:04:53.6]} 3... Nc6 {[%clk 0:04:51.1]}
4. d4 {[%clk 0:04:51.3]} 4... b6 {[%clk 0:04:50]} 5. Nc3 {[%clk 0:04:48]} 5...
Bb7 {[%clk 0:04:48.4]} 6. e3 {[%clk 0:04:45]} 6... Rb8 {[%clk 0:04:47.2]} 7.
Nge2 {[%clk 0:04:41.8]} 7... Bb4 {[%clk 0:04:45]} 8. O-O {[%clk 0:04:40.1]} 8...
Bxc3 {[%clk 0:04:42]} 9. Nxc3 {[%clk 0:04:38.6]} 9... Nf6 {[%clk 0:04:41.1]} 10.
a3 {[%clk 0:04:34.8]} 10... O-O {[%clk 0:04:39.7]} 11. b4 {[%clk 0:04:32.6]}
11... Ne7 {[%clk 0:04:38.5]} 12. Bxb7 {[%clk 0:04:30.4]} 12... Rxb7 {[%clk
0:04:37.3]} 13. Qf3 {[%clk 0:04:28.9]} 13... Rb8 {[%clk 0:04:34.2]} 14. Nb5
{[%clk 0:04:23.3]} 14... a6 {[%clk 0:04:27.8]} 15. Nc3 {[%clk 0:04:21.7]} 15...
c6 {[%clk 0:04:22.3]} 16. Bb2 {[%clk 0:04:20]} 16... d5 {[%clk 0:04:16.2]} 17.
c5 {[%clk 0:04:14.6]} 17... bxc5 {[%clk 0:04:12.3]} 18. dxc5 {[%clk 0:04:13.6]}
18... Ng6 {[%clk 0:04:01.6]} 19. Ne2 {[%clk 0:04:08.5]} 19... Ne4 {[%clk
0:03:57.6]} 20. Nc3 {[%clk 0:04:02.9]} 20... Nd2 {[%clk 0:03:54.2]} 21. Qe2
{[%clk 0:03:58.8]} 21... Nxf1 {[%clk 0:03:52.2]} 22. Rxf1 {[%clk 0:03:55.8]}
22... Ne5 {[%clk 0:03:38.6]} 23. Nd1 {[%clk 0:03:49.3]} 23... Nc4 {[%clk
0:03:36.4]} 24. Bc1 {[%clk 0:03:43.8]} 24... a5 {[%clk 0:03:33.9]} 25. Qg4
{[%clk 0:03:23.9]} 25... axb4 {[%clk 0:03:28.8]} 26. axb4 {[%clk 0:03:22.2]}
26... Rxb4 {[%clk 0:03:24.7]} 27. e4 {[%clk 0:03:21.4]} 27... Ne5 {[%clk
0:03:17.2]} 28. Qf4 {[%clk 0:03:12.6]} 28... Rxe4 {[%clk 0:03:14.6]} 29. Qd2
{[%clk 0:03:05.2]} 29... Nf3+ {[%clk 0:03:12.1]} 0-1

[Event "Live Chess"]
[Site "Chess.com"]
[Date "2024.06.02"]
[Round "-"]
[White "grillage"]
[Black "McCarthyStone"]
[Result "0-1"]
[WhiteElo "1863"]
[BlackElo "2486"]
[TimeControl "300"]
[EndTime "6:21:30 PDT"]
[Termination "McCarthyStone won by checkmate"]

1. d4 {[%clk 0:04:56.6]} 1... g6 {[%clk 0:04:51.3]} 2. Nf3 {[%clk 0:04:54.7]}
2... Bg7 {[%clk 0:04:50.6]} 3. g3 {[%clk 0:04:54]} 3... Nf6 {[%clk 0:04:48.1]}
4. c4 {[%clk 0:04:51.7]} 4... O-O {[%clk 0:04:48]} 5. Bg2 {[%clk 0:04:50.6]}
5... d6 {[%clk 0:04:47.8]} 6. O-O {[%clk 0:04:49.8]} 6... Nbd7 {[%clk
0:04:47.6]} 7. d5 {[%clk 0:04:48.7]} 7... c6 {[%clk 0:04:46]} 8. Nc3 {[%clk
0:04:44.2]} 8... Nb6 {[%clk 0:04:42]} 9. Qd3 {[%clk 0:04:28.9]} 9... Nfd7 {[%clk
0:04:23]} 10. Rb1 {[%clk 0:04:23.7]} 10... Nc5 {[%clk 0:04:21.2]} 11. Qd1 {[%clk
0:04:05.1]} 11... Nxc4 {[%clk 0:04:11.3]} 12. dxc6 {[%clk 0:04:03.2]} 12... bxc6
{[%clk 0:04:02.7]} 13. Nd4 {[%clk 0:03:52.2]} 13... Bd7 {[%clk 0:03:40.2]} 14.
Nxc6 {[%clk 0:03:46.3]} 14... Qe8 {[%clk 0:03:37.7]} 15. Nd4 {[%clk 0:03:40.6]}
15... Rb8 {[%clk 0:03:35.3]} 16. b3 {[%clk 0:03:23.9]} 16... Ne5 {[%clk
0:03:21.9]} 17. Nd5 {[%clk 0:03:16]} 17... e6 {[%clk 0:03:07.6]} 18. Ne3 {[%clk
0:02:56.4]} 18... Nc6 {[%clk 0:02:43.3]} 19. Nxc6 {[%clk 0:02:50.7]} 19... Bxc6
{[%clk 0:02:43.2]} 20. Qxd6 {[%clk 0:02:46.6]} 20... Bxg2 {[%clk 0:02:39.3]} 21.
Kxg2 {[%clk 0:02:43.4]} 21... Ne4 {[%clk 0:02:38.1]} 22. Qa6 {[%clk 0:02:29.7]}
22... Nc3 {[%clk 0:02:33.6]} 23. Ba3 {[%clk 0:02:12.6]} 23... Rb6 {[%clk
0:02:27.6]} 24. Qxa7 {[%clk 0:02:06.3]} 24... Qc6+ {[%clk 0:02:26.3]} 25. Kg1
{[%clk 0:02:03.5]} 25... Nxe2# {[%clk 0:02:25]} 0-1

[Event "Live Chess"]
[Site "Chess.com"]
[Date "2024.06.02"]
[Round "-"]
[White "StoreySniper"]
[Black "Dhaydon19"]
[Result "0-1"]
[WhiteElo "2495"]
[BlackElo "2665"]
[TimeControl "300"]
[EndTime "6:21:54 PDT"]
[Termination "Dhaydon19 won on time"]

1. e4 {[%clk 0:04:57.6]} 1... c6 {[%clk 0:04:58.7]} 2. b3 {[%clk 0:04:54.5]}
2... d5 {[%clk 0:04:58.1]} 3. Bb2 {[%clk 0:04:53.5]} 3... dxe4 {[%clk
0:04:56.8]} 4. Nc3 {[%clk 0:04:52.5]} 4... Nf6 {[%clk 0:04:56.2]} 5. Qe2 {[%clk
0:04:51.5]} 5... Bf5 {[%clk 0:04:54.5]} 6. g3 {[%clk 0:04:44.7]} 6... e6 {[%clk
0:04:53]} 7. Bg2 {[%clk 0:04:43.7]} 7... Nbd7 {[%clk 0:04:52.2]} 8. Nxe4 {[%clk
0:04:42.2]} 8... Be7 {[%clk 0:04:50.7]} 9. O-O-O {[%clk 0:04:33.5]} 9... O-O
{[%clk 0:04:48.7]} 10. Nc3 {[%clk 0:04:22.9]} 10... a5 {[%clk 0:04:43.5]} 11. h3
{[%clk 0:04:20.4]} 11... Nd5 {[%clk 0:04:35.6]} 12. Nxd5 {[%clk 0:04:14.3]}
12... cxd5 {[%clk 0:04:32.3]} 13. g4 {[%clk 0:04:12]} 13... Bg6 {[%clk
0:04:31.4]} 14. h4 {[%clk 0:03:51.7]} 14... Bxh4 {[%clk 0:04:27.1]} 15. f4
{[%clk 0:03:47]} 15... Bf6 {[%clk 0:04:20.7]} 16. d4 {[%clk 0:03:30.4]} 16... a4
{[%clk 0:04:15.1]} 17. f5 {[%clk 0:03:02.8]} 17... exf5 {[%clk 0:04:12.5]} 18.
gxf5 {[%clk 0:02:58.4]} 18... Bxf5 {[%clk 0:04:10.7]} 19. Bxd5 {[%clk
0:02:57.1]} 19... Rc8 {[%clk 0:04:05.6]} 20. Be4 {[%clk 0:02:39]} 20... Bxe4
{[%clk 0:03:57.4]} 21. Qxe4 {[%clk 0:02:37.6]} 21... g6 {[%clk 0:03:56.7]} 22.
Nf3 {[%clk 0:02:22.9]} 22... axb3 {[%clk 0:03:47.9]} 23. axb3 {[%clk 0:02:21.2]}
23... Re8 {[%clk 0:03:20.2]} 24. Ne5 {[%clk 0:02:19.5]} 24... Nxe5 {[%clk
0:03:14.6]} 25. dxe5 {[%clk 0:02:18.3]} 25... Bg5+ {[%clk 0:03:12.2]} 26. Kb1
{[%clk 0:02:16.5]} 26... Qe7 {[%clk 0:03:08.7]} 27. e6 {[%clk 0:02:05.1]} 27...
Qxe6 {[%clk 0:03:05.9]} 28. Qd4 {[%clk 0:01:49.2]} 28... f6 {[%clk 0:03:03.5]}
29. Rdg1 {[%clk 0:01:34]} 29... Qe4 {[%clk 0:02:52.9]} 30. Qf2 {[%clk
0:01:12.1]} 30... Be3 {[%clk 0:02:48.4]} 31. Qh2 {[%clk 0:01:08.5]} 31... g5
{[%clk 0:02:36.3]} 32. Re1 {[%clk 0:00:44.7]} 32... Qg6 {[%clk 0:02:27.4]} 33.
Qg2 {[%clk 0:00:36.8]} 33... Bf4 {[%clk 0:02:22.8]} 34. Qd5+ {[%clk 0:00:32.3]}
34... Qf7 {[%clk 0:02:15.8]} 35. Qf5 {[%clk 0:00:19]} 35... Rxe1+ {[%clk
0:02:08.4]} 36. Rxe1 {[%clk 0:00:17.7]} 36... Rf8 {[%clk 0:02:07.9]} 37. Rg1
{[%clk 0:00:16.6]} 37... Be3 {[%clk 0:02:02.6]} 38. Rg3 {[%clk 0:00:13.4]} 38...
Bb6 {[%clk 0:01:57.7]} 39. Qe4 {[%clk 0:00:10.8]} 39... Bc7 {[%clk 0:01:54.3]}
40. Rg2 {[%clk 0:00:09.6]} 40... h6 {[%clk 0:01:52.6]} 41. c4 {[%clk 0:00:08.2]}
41... Re8 {[%clk 0:01:50.4]} 42. Qxb7 {[%clk 0:00:06.8]} 42... Qg6+ {[%clk
0:01:49.5]} 43. Ka2 {[%clk 0:00:06.1]} 43... Qe4 {[%clk 0:01:45.2]} 44. Qxc7
{[%clk 0:00:04.4]} 44... Ra8+ {[%clk 0:01:43.9]} 45. Ba3 {[%clk 0:00:03.2]}
45... Qxg2+ {[%clk 0:01:43]} 46. Kb1 {[%clk 0:00:01.1]} 46... Qe4+ {[%clk
0:01:40.7]} 0-1

[Event "Live Chess"]
[Site "Chess.com"]
[Date "2024.06.02"]
[Round "-"]
[White "JohanKjeldahl"]
[Black "GMMickeyAdams"]
[Result "0-1"]
[WhiteElo "1791"]
[BlackElo "2801"]
[TimeControl "300"]
[EndTime "6:22:06 PDT"]
[Termination "GMMickeyAdams won by resignation"]

1. c4 {[%clk 0:04:57]} 1... Nf6 {[%clk 0:04:58.4]} 2. Nc3 {[%clk 0:04:55.7]}
2... e6 {[%clk 0:04:55.6]} 3. e4 {[%clk 0:04:54]} 3... d5 {[%clk 0:04:53.9]} 4.
e5 {[%clk 0:04:52.6]} 4... d4 {[%clk 0:04:51.4]} 5. exf6 {[%clk 0:04:51.6]} 5...
dxc3 {[%clk 0:04:50.5]} 6. bxc3 {[%clk 0:04:50.6]} 6... Qxf6 {[%clk 0:04:49.1]}
7. d4 {[%clk 0:04:49.6]} 7... e5 {[%clk 0:04:46]} 8. Nf3 {[%clk 0:04:45.9]} 8...
exd4 {[%clk 0:04:45]} 9. cxd4 {[%clk 0:04:44.2]} 9... Bb4+ {[%clk 0:04:43.2]}
10. Bd2 {[%clk 0:04:43.3]} 10... Bxd2+ {[%clk 0:04:42.4]} 11. Qxd2 {[%clk
0:04:41.4]} 11... O-O {[%clk 0:04:41.9]} 12. Be2 {[%clk 0:04:39.2]} 12... Nc6
{[%clk 0:04:38.5]} 13. O-O {[%clk 0:04:30.9]} 13... Bg4 {[%clk 0:04:37.9]} 14.
Rad1 {[%clk 0:04:25.8]} 14... Rfe8 {[%clk 0:04:34.1]} 15. d5 {[%clk 0:04:19.7]}
15... Bxf3 {[%clk 0:04:29.1]} 16. Bxf3 {[%clk 0:04:17.7]} 16... Ne5 {[%clk
0:04:28.5]} 17. Be4 {[%clk 0:04:13.6]} 17... g6 {[%clk 0:04:08.9]} 18. f3 {[%clk
0:04:07.5]} 18... Nxc4 {[%clk 0:04:05.6]} 19. Qd3 {[%clk 0:04:00.3]} 19... Qb6+
{[%clk 0:04:00.7]} 20. Kh1 {[%clk 0:03:57.8]} 20... Nb2 {[%clk 0:03:59.7]} 21.
Qc2 {[%clk 0:03:43.5]} 21... Nxd1 {[%clk 0:03:58.6]} 22. Rxd1 {[%clk 0:03:42.3]}
22... Rad8 {[%clk 0:03:56.9]} 23. Rb1 {[%clk 0:03:35]} 23... Qa5 {[%clk
0:03:52.1]} 24. h4 {[%clk 0:03:30.1]} 24... c6 {[%clk 0:03:27.2]} 25. dxc6
{[%clk 0:03:26.8]} 25... bxc6 {[%clk 0:03:26]} 26. Qxc6 {[%clk 0:03:21.8]} 26...
Re6 {[%clk 0:03:16.1]} 27. Qb7 {[%clk 0:03:15.1]} 27... Red6 {[%clk 0:03:11.2]}
28. Rb5 {[%clk 0:03:01.7]} 28... Qe1+ {[%clk 0:03:07.8]} 29. Kh2 {[%clk
0:02:59.9]} 29... Qxh4+ {[%clk 0:03:07.2]} 0-1